fUSD/lending_fUSD_20240201
["ID","MTS","AMOUNT","RATE_DAILY","PERIOD"]
[313118774,1706767841428,-500.0,0.00032876,2]
[313118775,1706767841438,-524.9009412,0.00032876,2]
[313118776,1706767841447,-500.0,0.00032876,2]
[313118777,1706767841456,-521.66227605,0.00032876,2]
[313118778,1706767841466,-547.07461031,0.00032876,2]
[313118779,1706767841475,-500.0,0.00032876,2]
[313118780,1706767841485,-569.14472357,0.00032876,2]
[313118781,1706767841495,-500.0521557,0.00032876,2]
[313118782,1706767841504,-509.59550589,0.00032876,2]
[313118783,1706767841514,-602.4628144,0.00032876,2]
[313118784,1706767841523,-533.0175737,0.00032876,2]
[313118785,1706767841533,-568.70297962,0.00032876,2]
[313118786,1706767841542,-610.8386383,0.00032876,2]
[313118787,1706767841551,-513.66663881,0.00032876,2]
[313118788,1706767841561,-616.3111488,0.00032876,2]
[313118789,1706767841570,-544.01621874,0.00032876,2]
[313118790,1706767841579,-521.96108107,0.00032876,2]
[313118791,1706767841589,-504.35004035,0.00032876,2]
[313118792,1706767841598,-500.0,0.00032876,2]
[313118793,1706767841607,-556.52144209,0.00032876,2]
[313118794,1706767841616,-500.0,0.00032876,10]
[313118795,1706767841625,-500.0,0.00032876,2]
[313118796,1706767841634,-513.03718244,0.00032876,2]
[313118797,1706767841644,-543.47883563,0.00032876,2]
[313118798,1706767841653,-501.43788072,0.00032876,2]
[313118799,1706767841662,-553.0216033,0.00032876,2]
[313118800,1706767841672,-524.84733524,0.00032876,2]
[313118801,1706767841681,-500.0,0.00032876,2]
[313118802,1706767841690,-507.95887125,0.00032876,2]
[313118803,1706767841698,-644.64066485,0.00032876,2]
[313118804,1706767841707,-519.83302573,0.00032876,2]
[313118805,1706767841716,-500.0,0.00032876,2]
[313118806,1706767841725,-512.5514014,0.00032876,2]
[313118807,1706767841734,-551.95954288,0.00032876,2]
[313118808,1706767841742,-228.43138764,0.00032876,2]
[313118809,1706767841752,-547.87049903,0.00032876,2]
[313118810,1706767841761,-583.15829645,0.00032876,2]
[313118811,1706767841770,-510.47161292,0.00032876,2]
[313118812,1706767841779,-542.06185033,0.00032876,2]
[313118813,1706767841788,-309.48559253,0.00032876,2]
[313118814,1706767841797,-512.97955622,0.00032876,2]
[313118815,1706767841806,-500.0,0.00032876,2]
[313118816,1706767841815,-500.0,0.00032876,2]
[313118817,1706767841824,-560.52879056,0.00032876,2]
[313118818,1706767841833,-579.98138907,0.00032876,2]
[313118819,1706767841841,-519.58653756,0.00032876,2]
[313118820,1706767841850,-574.9062427,0.00032876,2]
[313118821,1706767841860,-553.03831461,0.00032876,2]
[313118822,1706767841870,-300.29955013,0.00032876,2]
[313118823,1706767841883,-564.98849963,0.00032876,2]
[313118824,1706767841892,-549.42930093,0.00032876,2]
[313118825,1706767841902,-687.74,0.00032876,2]
[313118826,1706767841915,-550.8637824,0.00032876,2]
[313118827,1706767841925,-500.0,0.00032876,2]
[313118828,1706767841937,-562.37109157,0.00032876,2]
[313118829,1706767841947,-1285.63,0.00032876,2]
[313118830,1706767841958,-505.56209072,0.00032876,2]
[313118831,1706767841967,-523.29235837,0.00032876,2]
[313118832,1706767841976,-625.28809982,0.00032876,2]
[313118833,1706767841986,-533.40958161,0.00032876,2]
[313118834,1706767841995,-500.0,0.00032876,2]
[313118835,1706767842004,-500.0,0.00032876,2]
[313118836,1706767842012,-500.0,0.00032876,2]
[313118837,1706767842022,-561.32,0.00032876,2]
[313118838,1706767842031,-534.03540481,0.00032876,2]
[313118839,1706767842040,-500.0,0.00032876,2]
[313118840,1706767842049,-505.32,0.00032876,2]
[313118841,1706767842058,-530.39956257,0.00032876,2]
[313118842,1706767842067,-500.0,0.00032876,2]
[313118843,1706767842076,-625.03,0.00032876,2]
[313118844,1706767842086,-500.0,0.00032876,2]
[313118845,1706767842095,-500.0,0.00032876,2]
[313118846,1706767842104,-500.0,0.00032876,2]
[313118847,1706767842113,-500.0,0.00032876,2]
[313118848,1706767842122,-500.0,0.00032876,2]
[313118849,1706767842131,-500.0,0.00032876,2]
[313118850,1706767842140,-500.0,0.00032876,2]
[313118851,1706767842150,-948.27,0.00032876,2]
[313118852,1706767842158,-500.0,0.00032876,2]
[313118853,1706767842168,-971.91,0.00032876,2]
[313118854,1706767842177,-783.15,0.00032876,2]
[313118855,1706767842186,-523.05523664,0.00032876,2]
[313118856,1706767842195,-523.08164024,0.00032876,2]
[313118857,1706767842204,-500.0,0.00032876,2]
[313118858,1706767842213,-525.828489,0.00032876,2]
[313118859,1706767842222,-1265.28,0.00032876,2]
[313118860,1706767842232,-500.0,0.00032876,2]
[313118861,1706767842241,-500.0,0.00032876,2]
[313118862,1706767842250,-500.0,0.00032876,2]
[313118863,1706767842259,-500.0,0.00032876,2]
[313118864,1706767842268,-500.0,0.00032876,2]
[313118865,1706767842278,-624.29601936,0.00032876,2]
[313118866,1706767842287,-554.12567296,0.00032876,2]
[313118867,1706767842296,-500.0,0.00032876,2]
[313118868,1706767842305,-500.0,0.00032876,2]
[313118869,1706767842314,-509.28389314,0.00032876,2]
[313118870,1706767842323,-182.21638461,0.00032876,2]
[313118871,1706767842332,-519.59,0.00032876,2]
[313118872,1706767842342,-500.0,0.00032876,2]
[313118873,1706767842351,-552.66856171,0.00032876,2]
[313118874,1706767842360,-519.15267544,0.00032876,2]
[313118875,1706767842369,-1070.42,0.00032876,2]
[313118876,1706767842379,-717.97,0.00032876,2]
[313118877,1706767842389,-500.0,0.00032876,2]
[313118878,1706767842398,-500.0,0.00032876,2]
[313118879,1706767842407,-507.8628672,0.00032876,2]
[313118880,1706767842416,-150.72314595,0.00032876,2]
[313118881,1706767842426,-500.0,0.00032876,2]
[313118882,1706767842435,-500.0,0.00032876,2]
[313118883,1706767842444,-921.81,0.00032876,2]
[313118884,1706767842454,-1082.24,0.00032876,7]
[313118885,1706767842463,-500.0,0.00032876,2]
[313118886,1706767842472,-500.0,0.00032876,2]
[313118887,1706767842481,-500.0,0.00032876,2]
[313118888,1706767842490,-535.74362496,0.00032876,2]
[313118889,1706767842500,-500.0,0.00032876,2]
[313118890,1706767842509,-428.86112404,0.00032876,2]
[313118891,1706767842518,-500.0,0.00032876,2]
[313118892,1706767842528,-500.0,0.00032876,2]
[313118893,1706767842536,-500.0,0.00032876,2]
[313118894,1706767842544,-500.0,0.00032876,2]
[313118895,1706767842553,-500.0,0.00032876,2]
[313118896,1706767842562,-500.0,0.00032876,2]
[313118897,1706767842571,-500.0,0.00032876,2]
[313118898,1706767842580,-500.0,0.00032876,2]
[313118899,1706767842590,-486.80457796,0.00032876,2]
[313118900,1706767842599,-500.0,0.00032876,2]
[313118901,1706767842609,-1403.68,0.00032876,2]
[313118902,1706767842618,-496.26189021,0.00032876,2]
[313118903,1706767842627,-500.0,0.00032876,2]
[313118904,1706767842637,-500.0,0.00032876,2]
[313118905,1706767842646,-500.02890067,0.00032876,2]
[313118906,1706767842655,-500.0,0.00032876,2]
[313118907,1706767842665,-500.0,0.00032876,2]
[313118908,1706767842674,-519.18170055,0.00032876,2]
[313118909,1706767842683,-500.0,0.00032876,2]
[313118910,1706767842692,-500.0,0.00032876,2]
[313118911,1706767842701,-500.0,0.00032876,2]
[313118912,1706767842711,-10000.0,0.00032876,3]
[313118913,1706767842720,-500.0,0.00032876,2]
[313118914,1706767842729,-500.0,0.00032876,2]
[313118915,1706767842738,-500.0,0.00032876,2]
[313118917,1706767842748,-500.0,0.00032876,20]
[313118918,1706767842758,-500.0,0.00032876,2]
[313118920,1706767842767,-500.0,0.00032876,2]
[313118922,1706767842776,-500.0,0.00032876,2]
[313118924,1706767842785,-500.0,0.00032876,2]
[313118925,1706767842793,-535.03834451,0.00032876,2]
[313118927,1706767842802,-500.0,0.00032876,2]
[313118928,1706767842811,-500.0,0.00032876,2]
[313118929,1706767842820,-294.2,0.00032876,2]
[313118930,1706767842829,-535.08176773,0.00032876,2]
[313118931,1706767842838,-500.0,0.00032876,2]
[313118932,1706767842847,-500.0,0.00032876,2]
[313118933,1706767842856,-500.0,0.00032876,2]
[313118934,1706767842869,-528.75668559,0.00032876,2]
[313118935,1706767842878,-576.43,0.00032876,2]
[313118936,1706767842887,-500.0,0.00032876,2]
[313118937,1706767842896,-500.0,0.00032876,2]
[313118938,1706767842905,-500.0,0.00032876,2]
[313118939,1706767842917,-500.0,0.00032876,2]
[313118940,1706767842926,-888.84,0.00032876,2]
[313118941,1706767842935,-500.0,0.00032876,2]
[313118942,1706767842944,-500.0,0.00032876,2]
[313118943,1706767842954,-500.0,0.00032876,2]
[313118944,1706767842963,-500.0,0.00032876,2]
[313118945,1706767842972,-500.0,0.00032876,2]
[313118946,1706767842981,-500.0,0.00032876,2]
[313118947,1706767842990,-500.0,0.00032876,2]
[313118948,1706767843000,-500.0,0.00032876,2]
[313118949,1706767843009,-500.0,0.00032876,2]
[313118950,1706767843018,-500.0,0.00032876,2]
[313118951,1706767843027,-500.0,0.00032876,2]
[313118952,1706767843037,-500.0,0.00032876,2]
[313118953,1706767843046,-500.0,0.00032876,2]
[313118954,1706767843055,-500.0,0.00032876,2]
[313118955,1706767843065,-500.0,0.00032876,2]
[313118956,1706767843074,-500.0,0.00032876,2]
[313118957,1706767843083,-500.0,0.00032876,2]
[313118958,1706767843091,-500.0,0.00032876,2]
[313118959,1706767843100,-500.0,0.00032876,2]
[313118960,1706767843109,-500.0,0.00032876,2]
[313118961,1706767843118,-500.0,0.00032876,2]
[313118962,1706767843127,-500.0,0.00032876,2]
[313118963,1706767843136,-500.0,0.00032876,2]
[313118964,1706767843145,-178.98297762,0.00032876,2]
[313118965,1706767843154,-500.0,0.00032876,2]
[313118966,1706767843164,-210.0496212,0.00032876,2]
[313118967,1706767843173,-500.0,0.00032876,2]
[313118968,1706767843182,-236.39493764,0.00032876,2]
[313118969,1706767843191,-500.0,0.00032876,2]
[313118970,1706767843201,-500.0,0.00032876,2]
[313118971,1706767843210,-500.0,0.00032876,2]
[313118972,1706767843219,-500.0,0.00032876,2]
[313118973,1706767843228,-500.0,0.00032876,2]
[313118974,1706767843237,-525.26176757,0.00032876,2]
[313118975,1706767843246,-500.0,0.00032876,2]
[313118976,1706767843255,-500.0,0.00032876,2]
[313118977,1706767843264,-500.0,0.00032876,2]
[313118978,1706767843274,-500.0,0.00032876,2]
[313118979,1706767843283,-500.0,0.00032876,2]
[313118980,1706767843293,-542.37631364,0.00032876,2]
[313118981,1706767843302,-500.0,0.00032876,2]
[313118982,1706767843311,-500.0,0.00032876,2]
[313118983,1706767843320,-500.0,0.00032876,2]
[313118984,1706767843329,-595.54045968,0.00032876,2]
[313118985,1706767843338,-500.0,0.00032876,2]
[313118986,1706767843347,-500.0,0.00032876,2]
[313118987,1706767843356,-500.0,0.00032876,2]
[313118988,1706767843365,-500.0,0.00032876,2]
[313118989,1706767843374,-500.0,0.00032876,2]
[313118990,1706767843384,-516.1187632,0.00032876,2]
[313118991,1706767843393,-520.11811677,0.00032876,2]
[313118992,1706767843402,-500.0,0.00032876,2]
[313118993,1706767843411,-500.0,0.00032876,2]
[313118994,1706767843420,-508.98265333,0.00032876,2]
[313118995,1706767843429,-635.14175743,0.00032876,2]
[313118996,1706767843438,-500.0,0.00032876,2]
[313118997,1706767843447,-2420.89,0.00032876,2]
[313118998,1706767843456,-537.44654605,0.00032876,2]
[313118999,1706767843465,-500.0,0.00032876,2]
[313119000,1706767843474,-500.0,0.00032876,2]
[313119001,1706767843483,-500.0,0.00032876,2]
[313119002,1706767843492,-500.0,0.00032876,2]
[313119003,1706767843501,-550.55,0.00032876,2]
[313119004,1706767843510,-500.0,0.00032876,2]
[313119005,1706767843519,-1324.13,0.00032876,2]
[313119006,1706767843529,-572.4669567,0.00032876,2]
[313119007,1706767843538,-500.0,0.00032876,2]
[313119008,1706767843546,-4595.94,0.00032876,2]
[313119009,1706767843555,-508.43526087,0.00032876,2]
[313119010,1706767843564,-500.0,0.00032876,2]
[313119011,1706767843573,-574.27,0.00032876,2]
[313119012,1706767843582,-228.1354618,0.00032876,2]
[313119013,1706767843592,-216.58770509,0.00032876,2]
[313119014,1706767843600,-674.55,0.00032876,2]
[313119015,1706767843609,-1571.26,0.00032876,2]
[313119016,1706767843618,-500.0,0.00032876,2]
[313119017,1706767843628,-853.94,0.00032876,2]
[313119018,1706767843637,-1000.0,0.00032876,21]
[313119019,1706767843646,-500.0,0.00032876,2]
[313119020,1706767843655,-500.0,0.00032876,2]
[313119021,1706767843664,-518.22005317,0.00032876,2]
[313119022,1706767843673,-500.0,0.00032876,2]
[313119023,1706767843682,-500.0,0.00032876,2]
[313119024,1706767843691,-500.0,0.00032876,2]
[313119025,1706767843700,-2838.9,0.00032876,2]
[313119026,1706767843708,-500.0,0.00032876,2]
[313119027,1706767843718,-500.0,0.00032876,2]
[313119028,1706767843727,-371.3426691,0.00032876,2]
[313119029,1706767843736,-871.16,0.00032876,2]
[313119030,1706767843745,-500.0,0.00032876,2]
[313119031,1706767843755,-500.0,0.00032876,2]
[313119032,1706767843764,-523.56007252,0.00032876,2]
[313119033,1706767843773,-2859.36,0.00032876,2]
[313119034,1706767843781,-526.78320603,0.00032876,2]
[313119035,1706767843790,-525.85274583,0.00032876,2]
[313119036,1706767843799,-721.21,0.00032876,2]
[313119037,1706767843808,-500.0,0.00032876,2]
[313119038,1706767843817,-1131.62,0.00032876,2]
[313119039,1706767843826,-220.56935443,0.00032876,2]
[313119040,1706767843835,-587.91586102,0.00032876,2]
[313119041,1706767843844,-500.0,0.00032876,2]
[313119042,1706767843853,-500.0,0.00032876,2]
[313119043,1706767843862,-500.0,0.00032876,2]
[313119044,1706767843871,-500.0,0.00032876,2]
[313119045,1706767843884,-500.0,0.00032876,2]
[313119046,1706767843893,-500.0,0.00032876,2]
[313119047,1706767843903,-3620.71,0.00032876,2]
[313119048,1706767843913,-500.0,0.00032876,2]
[313119049,1706767843922,-523.25680525,0.00032876,2]
[313119050,1706767843932,-500.0,0.00032876,2]
[313119051,1706767843941,-500.0,0.00032876,2]
[313119052,1706767843952,-466.08811002,0.00032876,2]
[313119053,1706767843962,-500.0,0.00032876,2]
[313119054,1706767843972,-500.0,0.00032876,2]
[313119055,1706767843981,-500.0,0.00032876,2]
[313119056,1706767843990,-500.0,0.00032876,2]
[313119057,1706767844000,-1432.29,0.00032876,2]
[313119058,1706767844009,-762.64,0.00032876,2]
[313119059,1706767844018,-500.0,0.00032876,2]
[313119060,1706767844027,-590.1,0.00032876,2]
[313119061,1706767844036,-533.60165876,0.00032876,2]
[313119062,1706767844046,-517.37369283,0.00032876,2]
[313119063,1706767844056,-649.27,0.00032876,2]
[313119064,1706767844065,-500.0,0.00032876,2]
[313119065,1706767844074,-500.0,0.00032876,2]
[313119066,1706767844083,-1253.63,0.00032876,2]
[313119067,1706767844092,-962.89,0.00032876,2]
[313119068,1706767844101,-500.0,0.00032876,2]
[313119069,1706767844110,-1108.06,0.00032876,2]
[313119070,1706767844119,-500.0,0.00032876,2]
[313119071,1706767844128,-500.0,0.00032876,2]
[313119072,1706767844137,-500.0,0.00032876,2]
[313119073,1706767844146,-190.40488526,0.00032876,2]
[313119074,1706767844155,-500.0,0.00032876,2]
[313119075,1706767844164,-500.0,0.00032876,2]
[313119076,1706767844337,-588.59,0.00032876,2]
[313119077,1706767844346,-500.0,0.00032876,2]
[313119078,1706767844356,-500.0,0.00032876,2]
[313119079,1706767844365,-534.34158102,0.00032876,2]
[313119080,1706767844374,-500.0,0.00032876,2]
[313119081,1706767844383,-500.0,0.00032876,2]
[313119082,1706767844393,-500.0,0.00032876,2]
[313119083,1706767844402,-500.0,0.00032876,2]
[313119084,1706767844412,-500.0,0.00032876,2]
[313119085,1706767844421,-500.0,0.00032876,2]
[313119086,1706767844430,-500.0,0.00032876,2]
[313119087,1706767844440,-500.0,0.00032876,2]
[313119088,1706767844449,-500.0,0.00032876,2]
[313119089,1706767844458,-509.25392895,0.00032876,2]
[313119090,1706767844467,-500.0,0.00032876,2]
[313119091,1706767844476,-500.0,0.00032876,2]
[313119092,1706767844485,-500.0,0.00032876,2]
[313119093,1706767844494,-500.0,0.00032876,2]
[313119094,1706767844504,-500.0,0.00032876,2]
[313119095,1706767844513,-500.0,0.00032876,2]
[313119096,1706767844523,-500.0,0.00032876,2]
[313119097,1706767844534,-500.0,0.00032876,2]
[313119098,1706767844542,-500.0,0.00032876,2]
[313119099,1706767844551,-500.0,0.00032876,2]
[313119100,1706767844560,-500.0,0.00032876,2]
[313119101,1706767844570,-515.13299371,0.00032876,2]
[313119102,1706767844578,-717.31,0.00032876,2]
[313119103,1706767844587,-500.0,0.00032876,2]
[313119104,1706767844596,-500.0,0.00032876,2]
[313119105,1706767844605,-1018.8,0.00032876,2]
[313119106,1706767844614,-250.0,0.00032876,2]
[313119107,1706767844623,-2629.52,0.00032876,2]
[313119108,1706767844632,-500.0,0.00032876,2]
[313119109,1706767844641,-500.0,0.00032876,2]
[313119110,1706767844650,-586.28,0.00032876,2]
[313119111,1706767844659,-500.0,0.00032876,2]
[313119112,1706767844668,-544.65,0.00032876,2]
[313119113,1706767844678,-500.0,0.00032876,2]
[313119114,1706767844687,-590.82324621,0.00032876,2]
[313119115,1706767844695,-500.0,0.00032876,2]
[313119116,1706767844705,-616.55,0.00032876,2]
[313119117,1706767844714,-500.0,0.00032876,2]
[313119118,1706767844723,-1013.72,0.00032876,2]
[313119119,1706767844732,-709.53,0.00032876,2]
[313119120,1706767844741,-500.0,0.00032876,2]
[313119121,1706767844751,-500.0,0.00032876,2]
[313119122,1706767844760,-1249.35,0.00032876,2]
[313119123,1706767844769,-503.25,0.00032876,2]
[313119124,1706767844778,-898.09,0.00032876,2]
[313119125,1706767844787,-579.35,0.00032876,2]
[313119126,1706767844796,-500.0,0.00032876,2]
[313119127,1706767844805,-500.0,0.00032876,2]
[313119128,1706767844814,-1000.0,0.00032876,7]
[313119129,1706767844823,-1101.62,0.00032876,2]
[313119130,1706767844832,-500.0,0.00032876,2]
[313119131,1706767844841,-4471.09,0.00032876,2]
[313119132,1706767844851,-500.0,0.00032876,2]
[313119133,1706767844860,-115.92597874,0.00032876,2]
[313119134,1706767845142,-1634.97402126,0.00032876,2]
[313119135,1706767845152,-656.75,0.00032876,2]
[313119136,1706767845161,-3008.85,0.00032876,2]
[313119137,1706767845170,-500.0,0.00032876,2]
[313119138,1706767845179,-500.0,0.00032876,2]
[313119139,1706767845188,-1205.31,0.00032876,2]
[313119140,1706767845198,-500.0,0.00032876,2]
[313119141,1706767845208,-500.0,0.00032876,2]
[313119142,1706767845218,-500.0,0.00032876,2]
[313119143,1706767845227,-500.0,0.00032876,2]
[313119144,1706767845238,-500.0,0.00032876,2]
[313119145,1706767845247,-597.95,0.00032876,2]
[313119146,1706767845256,-21.73232041,0.00032876,2]
[313119147,1706767845604,-478.26767959,0.00032876,2]
[313119148,1706767845614,-500.0,0.00032876,2]
[313119149,1706767845624,-814.71638856,0.00032876,2]
[313119150,1706767845636,-500.15361144,0.00032876,2]
[313119151,1706767845645,-9.7508494,0.00032876,2]
[313119152,1706767845802,-730.4191506,0.00032876,2]
[313119153,1706767845812,-500.0,0.00032876,2]
[313119154,1706767845822,-658.58,0.00032876,2]
[313119155,1706767845832,-500.0,0.00032876,2]
[313119156,1706767845842,-500.0,0.00032876,2]
[313119157,1706767845851,-500.0,0.00032876,2]
[313119158,1706767845862,-1000.0,0.00032876,7]
[313119159,1706767845872,-1068.54,0.00032876,2]
[313119160,1706767845884,-500.0,0.00032876,2]
[313119161,1706767845894,-500.0,0.00032876,2]
[313119162,1706767845902,-500.0,0.00032876,2]
[313119163,1706767845912,-1300.71,0.00032876,2]
[313119164,1706767845922,-575.3,0.00032876,2]
[313119165,1706767845931,-716.07,0.00032876,2]
[313119166,1706767845940,-500.0,0.00032876,2]
[313119167,1706767845949,-619.1,0.00032876,2]
[313119168,1706767845960,-500.0,0.00032876,2]
[313119169,1706767845969,-500.0,0.00032876,2]
[313119170,1706767845978,-636.58,0.00032876,2]
[313119171,1706767845987,-541.23,0.00032876,2]
[313119172,1706767845998,-500.0,0.00032876,2]
[313119173,1706767846007,-500.0,0.00032876,2]
[313119174,1706767846016,-632.23,0.00032876,2]
[313119175,1706767846025,-2439.61,0.00032876,2]
[313119176,1706767846033,-500.0,0.00032876,2]
[313119177,1706767846043,-606.44947571,0.00032876,2]
[313119178,1706767846053,-1677.34,0.00032876,2]
[313119179,1706767846061,-500.0,0.00032876,2]
[313119180,1706767846070,-500.0,0.00032876,2]
[313119181,1706767846079,-500.0,0.00032876,2]
[313119182,1706767846088,-680.78,0.00032876,2]
[313119183,1706767846097,-500.0,0.00032876,2]
[313119184,1706767846106,-500.0,0.00032876,2]
[313119185,1706767846115,-1580.51,0.00032876,2]
[313119186,1706767846124,-2326.9,0.00032876,5]
[313119187,1706767846133,-500.0,0.00032876,2]
[313119188,1706767846142,-751.87,0.00032876,2]
[313119189,1706767846151,-500.0,0.00032876,2]
[313119190,1706767846160,-535.99,0.00032876,2]
[313119191,1706767846169,-500.0,0.00032876,2]
[313119192,1706767846178,-500.0,0.00032876,2]
[313119193,1706767846187,-500.0,0.00032876,2]
[313119194,1706767846196,-500.0,0.00032876,2]
[313119195,1706767846205,-500.0,0.00032876,2]
[313119196,1706767846215,-500.0,0.00032876,2]
[313119197,1706767846224,-500.0,0.00032876,2]
[313119198,1706767846233,-500.0,0.00032876,2]
[313119199,1706767846242,-1773.3,0.00032876,2]
[313119200,1706767846252,-1174.72,0.00032876,2]
[313119201,1706767846261,-500.0,0.00032876,2]
[313119202,1706767846270,-629.18,0.00032876,2]
[313119203,1706767846280,-500.0,0.00032876,2]
[313119204,1706767846289,-876.4,0.00032876,2]
[313119205,1706767846298,-751.45,0.00032876,2]
[313119206,1706767846307,-500.0,0.00032876,2]
[313119207,1706767846317,-176.02063487,0.00032876,2]
[313119208,1706767846326,-688.18,0.00032876,2]
[313119209,1706767846335,-880.65,0.00032876,2]
[313119210,1706767846344,-1659.93,0.00032876,2]
[313119211,1706767846353,-577.15,0.00032876,2]
[313119212,1706767846362,-500.0,0.00032876,2]
[313119213,1706767846372,-187.18642964,0.00032876,2]
[313119214,1706767846381,-500.0,0.00032876,2]
[313119215,1706767846390,-500.0,0.00032876,2]
[313119216,1706767846400,-500.0,0.00032876,2]
[313119217,1706767846409,-536.1729832,0.00032876,2]
[313119218,1706767846418,-500.0,0.00032876,2]
[313119219,1706767846427,-955.54,0.00032876,2]
[313119220,1706767846436,-500.0,0.00032876,2]
[313119221,1706767846446,-16783.71,0.00032876,2]
[313119222,1706767846455,-500.0,0.00032876,2]
[313119223,1706767846465,-500.0,0.00032876,2]
[313119224,1706767846474,-500.0,0.00032876,2]
[313119225,1706767846483,-820.84,0.00032876,2]
[313119226,1706767846492,-500.0,0.00032876,2]
[313119227,1706767846502,-616.57,0.00032876,2]
[313119228,1706767846511,-521.7554033,0.00032876,2]
[313119229,1706767846520,-1380.98,0.00032876,2]
[313119230,1706767846528,-1477.5,0.00032876,5]
[313119231,1706767846538,-565.28600936,0.00032876,2]
[313119232,1706767846547,-554.92962932,0.00032876,2]
[313119233,1706767846556,-500.0,0.00032876,2]
[313119234,1706767846565,-500.0,0.00032876,2]
[313119235,1706767846574,-500.0,0.00032876,2]
[313119236,1706767846583,-500.0,0.00032876,2]
[313119237,1706767846592,-535.97,0.00032876,2]
[313119238,1706767846601,-156.50451813,0.00032876,2]
[313119239,1706767846610,-500.0,0.00032876,2]
[313119240,1706767846619,-500.0,0.00032876,2]
[313119241,1706767846628,-522.87681317,0.00032876,2]
[313119242,1706767846637,-859.07,0.00032876,2]
[313119243,1706767846646,-639.04,0.00032876,2]
[313119244,1706767846655,-500.0,0.00032876,2]
[313119245,1706767846663,-1308.69,0.00032876,2]
[313119246,1706767846673,-500.0,0.00032876,2]
[313119247,1706767846682,-500.0,0.00032876,2]
[313119248,1706767846690,-500.0,0.00032876,2]
[313119249,1706767846699,-523.04452817,0.00032876,2]
[313119250,1706767846708,-500.0,0.00032876,2]
[313119251,1706767846718,-637.92948716,0.00032876,2]
[313119252,1706767846727,-498.95520877,0.00032876,2]
[313119253,1706767846736,-1314.46,0.00032876,2]
[313119254,1706767846745,-706.95,0.00032876,2]
[313119255,1706767846755,-500.0,0.00032876,2]
[313119256,1706767846765,-500.0,0.00032877,2]
[313119257,1706767846774,-4724.5579643,0.00032945,4]
[313119258,1706767846783,-234.0201,0.00032948,4]
[313119259,1706767846791,-151.0201,0.00032998,4]
[313119260,1706767846800,-1020.0,0.00033,3]
[313119261,1706767846809,-909.0,0.00033,3]
[313119262,1706767846818,-550.0,0.00033,3]
[313119263,1706767846827,-3000.0,0.00033,2]
[313119264,1706767846836,-1000.0,0.00033,7]
[313119265,1706767846845,-50000.0,0.00033042,10]
[313119266,1706767846854,-234.0201,0.00033048,4]
[313119267,1706767846864,-151.0201,0.00033098,4]
[313119268,1706767846876,-234.0201,0.00033148,4]
[313119269,1706767846885,-584.69,0.00033151,120]
[313119270,1706767846894,-880.57,0.00033151,2]
[313119271,1706767846903,-2000.0,0.00033205,2]
[313119272,1706767846913,-166.99,0.00033214,2]
[313119273,1706767846922,-234.0201,0.00033248,4]
[313119274,1706767846931,-153.87,0.00033268,2]
[313119275,1706767846940,-151.0201,0.00033298,4]
[313119276,1706767846950,-1000.0,0.000333,7]
[313119277,1706767846961,-3000.0,0.0003331,2]
[313119278,1706767846971,-343.61499392,0.0003331,5]